Cogmind - Beta 10.2 @@@ ROGUE MODE // 2021.03.19 @ 18:30:20 Player: Robbedoes Result: Self-destructed Performance ------------- Evolutions (2) 1000 Regions Visited (5) 1000 Robots Destroyed (40) 200 Value Destroyed (970) 970 Prototype IDs (0) 0 Alien Tech Used (0) 0 Bonus (0) 0 TOTAL SCORE: 3170 Bonus ------- None Cogmind --------- Core Integrity 405/550 Matter 300/300 Energy 290/290 System Corruption 0% Temperature Cool (0) Movement Core (1150) Ox22 Location -8/Materials Parts ------- > --- POWER (2) -------- Ion Engine Light Deuterium Engine > --- PROPULSION (3) --- (None) > --- UTILITY (3) ------ Large Storage Unit High-capacity Storage Unit Makeshift Sensor Array > --- WEAPON (3) ------- Spear Spear Spear > --- INVENTORY (18) --- Light Ion Engine Nuclear Core Large Storage Unit Visual Processing Unit Makeshift Sensor Array Signal Interpreter Advanced Targeting Computer Layered Light Armor Plating Layered Light Armor Plating Layered Light Armor Plating Layered Light Armor Plating Assault Rifle Assault Rifle Assault Rifle EMP Blaster Grenade Launcher Remote Datajack Spear Peak State ------------ > --- POWER ------------ Ion Engine Light Deuterium Engine > --- PROPULSION ------- Wheel Wheel > --- UTILITY ---------- Large Storage Unit High-capacity Storage Unit Makeshift Sensor Array > --- WEAPON ----------- Spear Spear Spear > --- INVENTORY -------- Light Ion Engine Nuclear Core Large Storage Unit Makeshift Sensor Array Signal Interpreter Advanced Targeting Computer Layered Light Armor Plating Layered Light Armor Plating Layered Light Armor Plating Layered Light Armor Plating Assault Rifle Assault Rifle Assault Rifle EMP Blaster Grenade Launcher Remote Datajack Remote Datajack Spear [Rating: 28] Favorites ----------- Power Light Ion Engine Engine Light Ion Engine Propulsion Wheel Leg Aluminum Leg Wheel Wheel Utility Large Storage Unit Device Makeshift Sensor Array Storage Large Storage Unit Protection Layered Light Armor Plating Weapon Assault Rifle Energy Gun Medium Laser Ballistic Gun Assault Rifle Launcher Grenade Launcher Piercing Weapon Spear Build | -11 -10 -10 -10 -9 -8 ------- Run | Scr Mat Min Exi Min Mat Slots Evolved 4 | . . . . . 4 Power 1 | . . . . . 1 Propulsion 1 | . . . . . 1 Utility 1 | . . . . . 1 Weapon 1 | . . . . . 1 Parts Attached 30 | . 7 . 1 5 17 Power 3 | . . . . . 3 Engine 3 | . . . . . 3 Core . | . . . . . . Reactor . | . . . . . . Propulsion 10 | . 2 . . 1 7 Treads . | . . . . . . Leg . | . . . . . . Wheel 10 | . 2 . . 1 7 Hover . | . . . . . . Flight . | . . . . . . Utility 6 | . 2 . 1 . 3 Device 2 | . . . . . 2 Storage 3 | . 2 . 1 . . Processor . | . . . . . . Hackware . | . . . . . . Protection 1 | . . . . . 1 Artifact . | . . . . . . Weapon 11 | . 3 . . 4 4 Energy Gun 1 | . 1 . . . . Energy Cannon . | . . . . . . Ballistic Gun 6 | . 2 . . 3 1 Ballistic Cannon . | . . . . . . Launcher 1 | . . . . 1 . Special Weapon . | . . . . . . Impact Weapon . | . . . . . . Slashing Weapon . | . . . . . . Piercing Weapon 3 | . . . . . 3 Special Melee Weapon . | . . . . . . Unidentified Prototypes . | . . . . . . Parts Lost 6 | . . . . 1 5 Power 1 | . . . . . 1 Propulsion 4 | . . . . . 4 Utility . | . . . . . . Weapon 1 | . . . . 1 . Highest Loss Streak 1 | . . . . 1 1 Average Slot Usage (%) 98 | . 96 100 100 100 96 Engine 14 | . 14 14 14 14 17 Wheel 26 | . 24 28 28 28 24 Device 2 | . . . . . 8 Storage 25 | . 26 28 28 28 18 Energy Gun 1 | . 7 . . . . Ballistic Gun 19 | . 18 28 28 27 2 Piercing Weapon 6 | . . . . . 24 Naked Turns . | . . . . . . Heaviest Build 69 | 10 39 39 55 55 69 Greatest Support 36 | 20 20 20 20 26 36 Greatest Overweight (x) 6 | . 1 1 2 2 6 Average Overweight (x) 1 | . . 1 1 2 1 Largest Inventory Capacity 18 | . 16 16 18 18 18 Average Capacity 17 | . 14 16 17 18 18 Most Carried 18 | . 14 14 18 18 18 Average Carried 15 | . 10 14 15 17 17 Final Capacity 18 | 6 16 16 18 18 18 Final Carried 18 | 6 14 14 18 17 18 Class Distribution -------------------- 98% | Mutant Dominant Class ---------------- Mutant | -10/Materials Mutant | -10/Mines Mutant | -10/Exiles Mutant | -9/Mines Mutant | -8/Materials Resources | -11 -10 -10 -10 -9 -8 ----------- Run | Scr Mat Min Exi Min Mat Matter Collected 701 | 167 113 48 . 208 165 Remotely . | . . . . . . Salvage Created 1386 | . 113 89 . 347 837 Parts 107 | . 14 2 . 30 61 Haulers Intercepted . | . . . . . . Recyclers Shooed . | . . . . . . Parts Field Recycled . | . . . . . . Retrieved Matter . | . . . . . . Parts Self-Destructed . | . . . . . . Prevented . | . . . . . . Kills | -11 -10 -10 -10 -9 -8 ------- Run | Scr Mat Min Exi Min Mat Combat Hostiles Destroyed 27 | . 4 2 . 12 9 Melee 9 | . . . . . 9 Guns 16 | . 4 2 . 10 . AOE 2 | . . . . 2 . Classes Destroyed 9 | . 3 . . 2 4 Worker 4 | . . . . . 4 Builder 2 | . . . . . 2 Recycler 3 | . . . . 1 2 Watcher 4 | . 1 . . . 3 Swarmer 9 | . 3 . . 6 . Grunt 12 | . 1 2 . 5 4 Brawler 1 | . . . . 1 . Sentry 4 | . . . . . 4 Hunter 1 | . . . . . 1 Best Kill Streak 6 | . 3 2 . 4 6 Combat Bots Only 4 | . 3 2 . 4 2 Max Kills in Single Turn 2 | . 1 1 . 2 1 Gunslinging . | . . . . . . Exploded 2 | . . . . 2 . Melee 1 | . . . . . 1 Uniques/NPCs Destroyed . | . . . . . . Combat | -11 -10 -10 -10 -9 -8 -------- Run | Scr Mat Min Exi Min Mat Damage Taken 1050 | . 102 115 . 304 529 Core 243 | . 47 18 . 33 145 Absorbed by Shields . | . . . . . . Core Remaining (%) 80 | 100 . . . 60 . Volleys Fired 43 | . 18 6 . 19 . Largest 2 | . 2 2 . 2 . Hottest 90 | . 90 40 . 54 . Shots Fired 84 | . 36 12 . 36 . Gun 83 | . 36 12 . 35 . Cannon . | . . . . . . Launcher 1 | . . . . 1 . Special . | . . . . . . Kinetic 71 | . 24 12 . 35 . Thermal 12 | . 12 . . . . Explosive 1 | . . . . 1 . Electromagnetic . | . . . . . . Robot Hit Streak 6 | . 4 6 . 5 . Robot Miss Streak 4 | . 2 1 . 4 . Penetration Max . | . . . . . . Secondary Targets 2 | . . 1 . 1 . Max Gunslinging Chain 1 | . . 1 . 1 . Shots Hit Robots 87 | . 19 10 . 21 37 Core Hits 54 | . 6 5 . 20 23 Critical Hits 1 | . . . . . 1 Critical Kills . | . . . . . . Critical Parts Destroyed 1 | . . . . . 1 Melee Attacks 52 | . . . . . 52 Impact . | . . . . . . Slashing . | . . . . . . Piercing 52 | . . . . . 52 Sneak Attacks 9 | . . . . . 9 Combat Hostiles . | . . . . . . Follow-up Attacks 12 | . . . . . 12 Damage Inflicted 2391 | . 212 131 . 449 1599 Guns 691 | . 212 131 . 348 . Cannons . | . . . . . . Explosions 101 | . . . . 101 . Melee 1599 | . . . . . 1599 Ramming . | . . . . . . Kinetic 630 | . 151 131 . 348 . Thermal 61 | . 61 . . . . Explosive 101 | . . . . 101 . Electromagnetic . | . . . . . . Impact . | . . . . . . Slashing . | . . . . . . Piercing 1599 | . . . . . 1599 Highest Corruption . | . . . . . . Average Corruption . | . . . . . . Corruption Purged . | . . . . . . Overload Shots . | . . . . . . Overflow Damage 89 | . . . . . 89 Projectiles . | . . . . . . Explosions . | . . . . . . Melee 89 | . . . . . 89 Knockbacks . | . . . . . . Impact . | . . . . . . Kinetic . | . . . . . . Secondary . | . . . . . . Self-Inflicted Damage . | . . . . . . Shots . | . . . . . . Rammed . | . . . . . . Targets Rammed . | . . . . . . Kicked . | . . . . . . Crushed . | . . . . . . Highest Temperature 120 | . 120 2 . 6 . Average Temperature 44 | . 54 2 . 6 . Received Heat Transfer 378 | . 30 60 . 72 216 Siege Activations . | . . . . . . Robots Corrupted . | . . . . . . Combat Hostiles . | . . . . . . Parts Fried . | . . . . . . Impact Corruptions . | . . . . . . Robots Melted . | . . . . . . Combat Hostiles . | . . . . . . Parts Melted 1 | . 1 . . . . Heat Transferred 161 | . 161 . . . . Parts Sabotaged . | . . . . . . Parts Stolen . | . . . . . . Parts Stripped . | . . . . . . Power Chain Reactions . | . . . . . . Missiles Intercepted . | . . . . . . Alert | -11 -10 -10 -10 -9 -8 ------- Run | Scr Mat Min Exi Min Mat Peak Influence 242 | . 97 50 . 195 242 Initial 31 | . . . . . 31 Average 77 | . 24 30 . 87 112 Maximum Alert Level 1 | . . . . . 1 Low Security (%) 97 | . 100 100 . 100 91 Level 1 2 | . . . . . 8 Level 2 . | . . . . . . Level 3 . | . . . . . . Level 4 . | . . . . . . Level 5 . | . . . . . . High Security . | . . . . . . Max Security . | . . . . . . Squads Dispatched 2 | . 2 . . . . Investigation 1 | . 1 . . . . Extermination . | . . . . . . Reinforcement 1 | . 1 . . . . Assault . | . . . . . . Garrison . | . . . . . . Intercept . | . . . . . . Construction Impeded . | . . . . . . Haulers Reinforced . | . . . . . . Stealth | -11 -10 -10 -10 -9 -8 --------- Run | Scr Mat Min Exi Min Mat Distress Signals 1 | . . . . . 1 Communications Jammed . | . . . . . . Distress Signals . | . . . . . . Times Spotted 45 | . 9 2 . 13 21 Peak Tracking Total 4 | . 3 2 . 4 4 Tactical Retreats 2 | . . . . . 2 Traps | -11 -10 -10 -10 -9 -8 ------- Run | Scr Mat Min Exi Min Mat Traps Triggered 1 | . 1 . . . . Indirectly . | . . . . . . Trap Hack Attempts . | . . . . . . Triggered . | . . . . . . Disarmed . | . . . . . . Reprogrammed . | . . . . . . Reused . | . . . . . . Traps Extracted . | . . . . . . Installed . | . . . . . . Triggered . | . . . . . . Machines | -11 -10 -10 -10 -9 -8 ---------- Run | Scr Mat Min Exi Min Mat Machines Disabled 1 | . 1 . . . . Max in Single Turn 1 | . 1 . . . . Machines Sabotaged . | . . . . . . Garrisons Compromised . | . . . . . . Overloaded Fab Kills . | . . . . . . Fab Network Shutdowns . | . . . . . . Hacking | -11 -10 -10 -10 -9 -8 --------- Run | Scr Mat Min Exi Min Mat Machines Accessed 4 | . 4 . . . . Terminals 3 | . 3 . . . . Fabricators . | . . . . . . Repair Stations . | . . . . . . Recycling Units 1 | . 1 . . . . Scanalyzers . | . . . . . . Garrison Access . | . . . . . . Total Hacks 8 | . 8 . . . . Successful 5 | . 5 . . . . Failed 3 | . 3 . . . . Catastrophic . | . . . . . . Database Lockouts . | . . . . . . Manual . | . . . . . . Terminals 6 | . 6 . . . . Fabricators . | . . . . . . Repair Stations . | . . . . . . Recycling Units 2 | . 2 . . . . Scanalyzers . | . . . . . . Garrison Access . | . . . . . . Terminal Hacks 3 | . 3 . . . . Alert Level 1 | . 1 . . . . Unreport Threat 1 | . 1 . . . . Zone Layout 1 | . 1 . . . . Fabricator Hacks . | . . . . . . Repair Station Hacks . | . . . . . . Recycling Unit Hacks 2 | . 2 . . . . Retrieve Matter 2 | . 2 . . . . Scanalyzer . | . . . . . . Garrison Access Hacks . | . . . . . . Unauthorized Hacks . | . . . . . . Terminals . | . . . . . . Fabricators . | . . . . . . Repair Stations . | . . . . . . Recycling Units . | . . . . . . Scanalyzers . | . . . . . . Garrison Access . | . . . . . . Data Cores Recovered . | . . . . . . Used . | . . . . . . Hacking Detections 3 | . 3 . . . . Full Trace Events . | . . . . . . Feedback Events . | . . . . . . Feedback Blocked . | . . . . . . Robot Schematics Acquired . | . . . . . . Robots Built . | . . . . . . Matter . | . . . . . . Time . | . . . . . . Total Robot Build Rating . | . . . . . . Part Schematics Acquired . | . . . . . . Parts Built . | . . . . . . Matter . | . . . . . . Time . | . . . . . . Total Part Build Rating . | . . . . . . Parts Repaired . | . . . . . . Time . | . . . . . . Parts Recycled . | . . . . . . Recycled Matter . | . . . . . . Retrieved Matter 50 | . 50 . . . . Retrieved Components . | . . . . . . Parts Scanalyzed . | . . . . . . Part Schematics Acquired . | . . . . . . Parts Damaged . | . . . . . . Bothacking | -11 -10 -10 -10 -9 -8 ------------ Run | Scr Mat Min Exi Min Mat Used RIF Installer . | . . . . . . Robots Hacked . | . . . . . . Non-combat . | . . . . . . Combat . | . . . . . . Robot Hacks Applied . | . . . . . . Relay Couplers Released . | . . . . . . Robots Rewired . | . . . . . . Allies Hacked . | . . . . . . Hacks Repelled . | . . . . . . Allies | -11 -10 -10 -10 -9 -8 -------- Run | Scr Mat Min Exi Min Mat Total Allies . | . . . . . . Largest Group . | . . . . . . Highest-Rated Group . | . . . . . . Highest-Rated Ally . | . . . . . . Total Orders . | . . . . . . Ally Attacks . | . . . . . . Total Damage . | . . . . . . Kills . | . . . . . . Allies Corrupted . | . . . . . . Allies Melted . | . . . . . . Intel | -11 -10 -10 -10 -9 -8 ------- Run | Scr Mat Min Exi Min Mat Robot Analysis Total . | . . . . . . Derelict Logs Recovered 1 | . . 1 . . . Drone Launches . | . . . . . . Drone Recoveries . | . . . . . . Exploration | -11 -10 -10 -10 -9 -8 ------------- Run | Scr Mat Min Exi Min Mat Turns Passed 2385 | . 465 78 571 664 607 Spaces Moved 1856 | 1 397 59 583 487 329 Core . | . . . . . . Treads . | . . . . . . Legs 50 | 1 49 . . . . Wheels 1806 | . 348 59 583 487 329 Hover . | . . . . . . Flight . | . . . . . . Fastest Speed 90 | 120 90 90 90 100 96 Average Speed 99 | 120 93 90 97 106 102 Slowest Speed 150 | 120 150 90 100 110 140 Overloaded Moves . | . . . . . . Propulsion Burnouts . | . . . . . . Robots Hopped . | . . . . . . Cave-ins Triggered . | . . . . . . Exploration Rate (%) 42 | 1 56 16 91 66 23 Regions Visited 5 Branch Regions 3 Pre-discovered Areas . | . . . . . . Known Exits Taken . | . . . . . . Unknown Exits Taken 5 | 1 1 1 1 1 . Scrap Searched 1 | . . . . 1 . Spaces Dug . | . . . . . . Terrain Destroyed 7 | . . . . 7 . Melee . | . . . . . . Projectile . | . . . . . . AOE 7 | . . . . 7 . Terrain Rammed . | . . . . . . Walls Destroyed . | . . . . . . Machines Disabled . | . . . . . . Actions | -11 -10 -10 -10 -9 -8 --------- Run | Scr Mat Min Exi Min Mat Total 2252 | . 452 71 587 597 545 Wait 243 | . 19 7 . 84 133 Move 1851 | . 396 58 582 486 329 Hop . | . . . . . . Pick Up 30 | . 10 . 4 1 15 Fast Attach 3 | . 1 . . . 2 Attach 8 | . 2 . . 1 5 Detach . | . . . . . . Swap 19 | . 4 . 1 4 10 Drop 19 | . 2 . . 2 15 Fire 43 | . 18 6 . 19 . Melee 36 | . . . . . 36 Ram . | . . . . . . Kick . | . . . . . . Crush . | . . . . . . Escape Stasis . | . . . . . . Rewire . | . . . . . . Trap . | . . . . . . Miscellaneous . | . . . . . . Route ------- -11/Scrapyard -10/Materials (discovered 2 exits: [*Mat] / [*Min]) -10/Mines (discovered 2 exits: [*Mat] / *Exi) -10/Exiles (discovered 2 exits: [*Min x2]) -9/Mines -8/Materials History --------- Turn | Location | Event 1 | -11/Scrapyard | Discovered new exit (range 0) 1 | -11/Scrapyard | Entered Materials 184 | -10/Materials | Discovered new exit (range 12) 313 | -10/Materials | Build established: Mutant 410 | -10/Materials | Discovered new exit (range 6) 466 | -10/Materials | Entered Mines 470 | -10/Mines | Discovered new exit (range 10) 477 | -10/Mines | Met a Derelict bent on vengeance 518 | -10/Mines | Learned Materials stockpile data 540 | -10/Mines | Deemed a non-threat by the Exiles lab entrance 540 | -10/Mines | Discovered new exit (range 5) 544 | -10/Mines | Entered Exiles 544 | -10/Exiles | Found Exiles lab destroyed 822 | -10/Exiles | Discovered new exit (range 15) 1106 | -10/Exiles | Discovered new exit (range 10) 1115 | -10/Exiles | Entered Mines 1269 | -9/Mines | Discovered new exit (range 16) 1507 | -9/Mines | Excavation squad dispatched 1507 | -9/Mines | A large section of the Mines collapsed 1779 | -9/Mines | Entered Materials 1779 | -8/Materials | Evolved 4 slots: Power x1, Propulsion x1, Utility x1, Weapon x1 2386 | -8/Materials | Self-destructed Last Messages --------------- 02268_ Sneak attack on U-05 Engineer. 02268_ U-05 Engineer destroyed. 02268_ K-01 Serf collects debris. 02284_ W-25 Informer destroyed. 02305_ Wheel destroyed. 02306_ Spear follow-up attack on H-55 Commando. 02309_ H-55 Commando destroyed. 02314_ Dropped Ion Engine. 02315_ Acquired 10 matter. 02317_ Dropped Remote Datajack. 02318_ Acquired Visual Processing Unit. 02336_ G-47 Trooper destroyed. 02340_ Spear follow-up attack on G-50 Soldier. 02344_ Wheel destroyed. 02348_ G-50 Soldier suffers critical hit. 02348_ Destroyed Carbon-fiber Leg. 02351_ Spear follow-up attack on G-50 Soldier. 02356_ G-50 Soldier destroyed. 02383_ W-25 Informer sends out distress signal. 02385_ Wheel destroyed. Map ----- +----------------------------------------------------+ | ?????????????????????????????????????????????????? | | ?????????????????????????????????????????????????? | | ?????????????????????????????????????????????????? | | ?????????????????????????????????????????????????? | | ?????????????????????????????????????????????????? | | ?????????????????????????????????????????????????? | | ?????????????????????????????????????????????????? | | ?????????????????????????????????????????????????? | | ?????????????????????????????????????????????????? | | ?????????????????????????????????????????????????? | | ?????????????????????????????????????????????????? | | ?????????????????????????????????????????????????? | | ????????????????##???????????????????????????????? | | ???????????????? ?#########????????????????????? | | ????????????????? ?# #????????????????????? | | ?????????????????? # #????????????????????? | | ??????????????????? # #????????????????????? | | ????????????????????+ =#########????????????? | | ????????????????????# =%![ "?????? | | ????????????????????# !%#########????????????? | | ????????????????????# =#????????????????????? | | ????????????????????### ###????????????????????? | | ??????????????????????# #??????????????????????? | | ??????????????????????# gg#??????????????????????? | | ??????????????????????# #??????????????????????? | | ?????????????????????## @##?????????????????????? | | ?????????????????????# #?????????????????????? | | ?????????????????????# |w###########???????????? | | ?????????????????????# *= %*=[ ????? | | ?????????????????????# [###########???????????? | | ??########???????????# #?????????????????????? | | ??# #???????????###=###?????????????????????? | | ??# "" #?????????????#*#???????????????????????? | | ??# """ #???????????###%###?????????????????????? | | ??# S" #???????????#!%!=!#?????????????????????? | | ??#! [ [#???????????# |*= #?????????????????????? | | ??# #???####+#### #?????????????????????? | | ??####+###???# # ! #?????????????????????? | | ???# ##### #*% #?????????????????????? | | ???#= ##= ##?????????????????????? | | ???# * ## #??????????????????????? | | ???# %[ ## #??????????????????????? | | ???# ##### ## #??????????????????????? | | ???### ###???# ##!=!#??????????????????????? | | ?????# #?????## ###![%#??????????????????????? | | ?????# #??????# #?#=%!#??????????????????????? | | ?????# #??????# #?#!=%#??????????????????????? | | ?????# #??????# #?#%==#??????????????????????? | | ???### ###????# #?#=%%#??????????????????????? | | ???# #????# ####/####????????????????????? | +----------------------------------------------------+ Best States ------------- Heat Dissipation 31 Energy Generation 19 Energy Capacity 400 Matter Stores 300 Matter Capacity 300 Sight Range 16 Robot Scan Range 22 Terrain Scan Density 10 Armor Coverage 150 Evasion (%) 42 Item Schematics ----------------- None Robot Schematics ------------------ None Fabricated ------------ Nothing Alien Tech Used ----------------- None Achievements -------------- None Challenges ------------ None Game ------ Seed InsulationSiegeBiocell Manual? 0 Play Time 00:22:48 Cumulative 15.4 hours Start 2021.03.19 @ 18:06:26 End 2021.03.19 @ 18:30:20 Sessions 1 Manual Loads 0 Difficulty Rogue Special Mode None Game No. 39 Rogue 39 Adventurer 0 Explorer 0 Win Type - Total 0 Types 0/0/0/0/0/0/0/0/0 Lore% 21 Gallery% 20 Achievement% 18 Wizard Run 0 Options --------- ASCII 0 Keyboard 0 Movement Numpad Keybinds 0 Fullscreen 2 Font 24/Terminus Map View 76x50 Tactical HUD 1 Map Filters NONE Filters NONE Steam 1 RUN: 8f0707c6-4296-4658-a63b-9812e951ff55